Cogmind - Beta 15 @@@ ROGUE MODE // 2025.08.03 @ 01:34:18 Player: Naughtyusername Result: Destroyed by J1-C7A(R) with Subdweller Beam Cannon Performance ------------- Evolutions (0) 0 Regions Visited (3) 600 Robots Destroyed (32) 160 Value Destroyed (713) 713 Prototype IDs (11) 220 Alien Tech Used (0) 0 Bonus (0) 0 TOTAL SCORE: 1693 Bonus ------- None Cogmind --------- Core Integrity 0/250 Matter 230/300 Energy 199/200 System Corruption 0% Temperature Cool (48) Movement Treading (240) Ox1 Location -10/Subcaves Parts ------- > --- POWER (1) -------- Subdweller Power Source > --- PROPULSION (2) --- Light Treads > --- UTILITY (2) ------ Large Storage Unit Makeshift Light Armor Plating > --- WEAPON (2) ------- Subdweller Beam Cannon Light Assault Rifle > --- INVENTORY (15) --- Subdweller Monowheel Improved Heat Sink High-capacity Matter Pod (200) Scrap Shield Tower Shield Light Assault Rifle Mini Grenade Launcher Flail Peak State ------------ > --- POWER ------------ Subdweller Power Source > --- PROPULSION ------- Light Treads Light Treads > --- UTILITY ---------- Large Storage Unit Targeting Computer > --- WEAPON ----------- Barrage Gun Battle Cannon > --- INVENTORY -------- Light Treads Subdweller Monowheel Improved Heat Sink High-capacity Matter Pod Signal Interpreter Makeshift Light Armor Plating Scrap Shield Tower Shield Subdweller Beam Cannon Light Assault Rifle Light Assault Rifle Mini Grenade Launcher Flail [Rating: 15] Favorites ----------- Power Light Ion Engine Engine Light Ion Engine Propulsion Light Treads Treads Light Treads Leg Aluminum Leg Utility Large Storage Unit Device Improved Terrain Scanner Storage Large Storage Unit Processor Signal Interpreter Protection Weapon Shielding Weapon Light Assault Rifle Energy Gun EM Shotgun Energy Cannon Subdweller Beam Cannon Ballistic Gun Light Assault Rifle Ballistic Cannon Battle Cannon Launcher Mini Grenade Launcher Impact Weapon Flail Build | -11 -10 -10 -10 ------- Run | Yrd Mat Min Sub Slots Evolved . | . . . . Power . | . . . . Propulsion . | . . . . Utility . | . . . . Weapon . | . . . . Parts Attached 29 | 4 9 2 14 Power 4 | . . 1 3 Engine 4 | . . 1 3 Core . | . . . . Reactor . | . . . . Propulsion 7 | 2 2 . 3 Treads 6 | 2 1 . 3 Leg 1 | . 1 . . Wheel . | . . . . Hover . | . . . . Flight . | . . . . Utility 6 | 1 1 . 4 Device 1 | 1 . . . Storage 1 | . 1 . . Processor 2 | . . . 2 Hackware . | . . . . Protection 2 | . . . 2 Artifact . | . . . . Weapon 12 | 1 6 1 4 Energy Gun 4 | . 4 . . Energy Cannon 1 | . . . 1 Ballistic Gun 4 | 1 . 1 2 Ballistic Cannon 1 | . . . 1 Launcher 1 | . 1 . . Special Weapon . | . . . . Impact Weapon 1 | . 1 . . Slashing Weapon . | . . . . Piercing Weapon . | . . . . Special Melee Weapon . | . . . . Unidentified Prototypes . | . . . . Parts Lost 12 | . 1 2 9 Power 2 | . . 1 1 Propulsion 4 | . . . 4 Utility 2 | . 1 . 1 Weapon 4 | . . 1 3 Highest Loss Streak 3 | . 1 2 3 To Critical Strikes . | . . . . Average Backups 11 | 2 9 12 13 Power . | 1 1 . . Propulsion 1 | . . 2 2 Utility 4 | . 1 5 5 Weapon 5 | 1 5 4 5 Tool/Special . | . . . . Unused Backups 16 | 4 2 . 10 Power . | . . . . Propulsion 7 | 4 2 . 1 Utility 6 | . . . 6 Weapon 3 | . . . 3 Tool/Special . | . . . . Average Slot Usage (%) 98 | . 98 99 96 Engine 13 | . 14 13 11 Treads 26 | . 23 28 27 Leg 1 | . 4 . . Device 1 | . 5 . . Storage 20 | . 21 28 15 Processor 3 | . . . 8 Protection 1 | . . . 4 Energy Gun 7 | . 19 3 . Ballistic Gun 15 | . 1 23 19 Ballistic Cannon 3 | . . . 7 Launcher 1 | . 3 . . Peak Build Rating 15 | 9 12 10 15 Average Rating 10 | 7 10 8 12 On Entrance 8 | 6 9 10 9 Naked Turns . | . . . . Heaviest Build 34 | 12 34 34 33 Greatest Support 40 | 40 40 40 40 Greatest Overweight (x) 1 | . 1 . . Average Overweight (x) . | . . . . Largest Inventory Capacity 15 | 8 15 15 15 Average Capacity 13 | 8 11 15 15 Most Carried 15 | 6 14 15 15 Average Carried 12 | 2 9 12 14 Final Capacity 15 | 8 15 15 15 Final Carried 14 | 2 14 14 10 Class Distribution -------------------- 98% | Mutant Dominant Class ---------------- Mutant | -10/Materials Mutant | -10/Mines Mutant | -10/Subcaves Resources | -11 -10 -10 -10 ----------- Run | Yrd Mat Min Sub Matter Collected 963 | 251 193 214 305 Remotely . | . . . . Salvage Created 1002 | 83 483 166 270 Parts 67 | 4 27 13 23 Haulers Intercepted 2 | . 2 . . Recyclers Shooed 2 | 1 1 . . Parts Field Recycled . | . . . . Retrieved Matter . | . . . . Parts Self-Destructed 9 | . . . 9 Prevented . | . . . . Kills | -11 -10 -10 -10 ------- Run | Yrd Mat Min Sub Combat Hostiles Destroyed 26 | . 9 8 9 Guns 15 | . 6 4 5 Cannons 4 | . . . 4 AOE 6 | . 3 3 . Classes Destroyed 7 | 2 3 1 1 Builder 1 | . . 1 . Tunneler 1 | 1 . . . Hauler 2 | . 2 . . Recycler 2 | 1 1 . . Swarmer 12 | . 3 6 3 Grunt 9 | . 6 2 1 Subdweller 5 | . . . 5 Best Kill Streak 4 | 2 4 3 3 Combat Bots Only 4 | . 4 3 3 Max Kills in Single Turn 2 | 1 1 2 1 Gunslinging . | . . . . Exploded 2 | . 1 2 . Melee . | . . . . Uniques/NPCs Destroyed . | . . . . Combat | -11 -10 -10 -10 -------- Run | Yrd Mat Min Sub Hostile Shots Fired 138 | . 33 28 77 Missed 38 | . 10 7 21 Hits 100 | . 23 21 56 Projectile 100 | . 23 21 56 Actively Blocked 1 | . . . 1 Damage Taken 1739 | . 267 323 1149 Core 257 | . 8 34 215 Absorbed by Shields . | . . . . Redirected to Shielding 50 | . . . 50 Core Remaining (%) 100 | 100 . . . Volleys Fired 90 | 3 22 16 49 Largest 2 | 2 2 2 2 Hottest 100 | 40 90 90 100 Shots Fired 163 | 6 37 24 96 Gun 139 | 6 32 21 80 Cannon 16 | . . . 16 Launcher 8 | . 5 3 . Special . | . . . . Kinetic 101 | 6 . . 95 Thermal 1 | . . . 1 Explosive 8 | . 5 3 . Electromagnetic 53 | . 32 21 . Robot Hit Streak 20 | 3 10 12 20 Robot Miss Streak 4 | 1 4 2 2 Penetration Max . | . . . . Secondary Targets 1 | . . 1 . Max Gunslinging Chain 1 | . . 1 . Shots Hit Robots 133 | 4 30 19 80 Core Hits 57 | 3 25 14 15 Critical Kills . | . . . . Critical Parts Destroyed . | . . . . Critical Strikes . | . . . . Melee Attacks 1 | . 1 . . Impact 1 | . 1 . . Slashing . | . . . . Piercing . | . . . . Sneak Attacks . | . . . . Combat Hostiles . | . . . . Follow-up Attacks . | . . . . Damage Inflicted 1861 | 44 657 550 610 Guns 1014 | 44 390 252 328 Cannons 282 | . . . 282 Explosions 520 | . 240 280 . Melee . | . . . . Ramming 45 | . 27 18 . Kinetic 625 | 44 . . 581 Thermal 89 | . . 60 29 Explosive 460 | . 240 220 . Electromagnetic 642 | . 390 252 . Impact . | . . . . Slashing . | . . . . Piercing . | . . . . Highest Corruption . | . . . . Average Corruption . | . . . . Corruption Purged . | . . . . Corruption Blocked . | . . . . Overload Shots . | . . . . Overflow Damage 73 | . 23 46 4 Projectiles 4 | . . . 4 Explosions 69 | . 23 46 . Melee . | . . . . Knockbacks 3 | . . . 3 Impact . | . . . . Kinetic 3 | . . . 3 Secondary . | . . . . Self-Inflicted Damage 61 | . 11 50 . Shots 1 | . . 1 . Rammed 5 | . 1 4 . Targets Rammed 6 | . 1 5 . Kicked . | . . . . Crushed 1 | . . 1 . Highest Temperature 216 | . 216 120 39 Average Temperature 74 | . 91 50 31 Received Heat Transfer 426 | . 123 57 246 Siege Activations . | . . . . Martial Activations . | . . . . Shielding Activations . | . . . . Robots Disrupted . | . . . . Combat Hostiles . | . . . . Robots Corrupted 1 | . . 1 . Combat Hostiles 1 | . . 1 . Parts Fried 4 | . 1 3 . Impact Corruptions . | . . . . Robots Melted . | . . . . Combat Hostiles . | . . . . Parts Melted . | . . . . Heat Transferred 87 | . . 50 37 Parts Sabotaged . | . . . . Parts Stolen . | . . . . Parts Stripped . | . . . . Power Chain Reactions 1 | . . 1 . Alert | -11 -10 -10 -10 ------- Run | Yrd Mat Min Sub Maximum Alert Level . | . . . . Low Security (%) 100 | 100 100 100 . Level 1 . | . . . . Level 2 . | . . . . Level 3 . | . . . . Level 4 . | . . . . Level 5 . | . . . . High Security . | . . . . Max Security . | . . . . Peak Influence 110 | 5 110 99 . Initial 9 | . . 9 . Average 32 | 2 42 23 . Influence Increases 699 | 10 368 231 90 Destroy 0b10 Robot/C 420 | . 180 160 80 Destroy 0b10 Robot/NC 30 | 10 15 5 . Destroy Leader 84 | . 44 30 10 Successful Hack 31 | . 31 . . Select Force Hacks 60 | . 60 . . Disable Machine 30 | . 15 15 . Destroy Structure 44 | . 23 21 . Influence Decreases 687 | 10 344 204 129 Entered New Map 42 | . . 15 27 Time Decay 535 | 10 298 169 58 Lost Part 74 | . 10 20 44 Purge Threat 36 | . 36 . . Squads Dispatched 2 | . 2 . . Investigation 2 | . 2 . . Extermination . | . . . . Reinforcement . | . . . . Assault . | . . . . Garrison . | . . . . Intercept . | . . . . Searches Triggered . | . . . . Construction Impeded . | . . . . Haulers Reinforced . | . . . . Active Scanning Responses . | . . . . Cargo Convoy Interrupts . | . . . . Stealth | -11 -10 -10 -10 --------- Run | Yrd Mat Min Sub Distress Signals 2 | . 2 . . Communications Jammed . | . . . . Distress Signals . | . . . . Times Spotted 30 | . 12 8 10 Peak Tracking Total 6 | . 6 3 3 Tactical Retreats . | . . . . Traps | -11 -10 -10 -10 ------- Run | Yrd Mat Min Sub Traps Triggered 4 | . . 1 3 Indirectly . | . . . . Trap Hack Attempts . | . . . . Triggered . | . . . . Disarmed . | . . . . Reprogrammed . | . . . . Reused . | . . . . Traps Extracted . | . . . . Installed . | . . . . Triggered . | . . . . Machines | -11 -10 -10 -10 ---------- Run | Yrd Mat Min Sub Machines Disabled 3 | . 1 1 1 Max in Single Turn 1 | . 1 1 1 Machines Repaired . | . . . . Machines Dismantled . | . . . . Machines Sabotaged . | . . . . Overloaded Fab Kills . | . . . . Hacking | -11 -10 -10 -10 --------- Run | Yrd Mat Min Sub Machines Accessed 11 | . 9 1 1 Terminals 7 | . 7 . . Fabricators . | . . . . Repair Stations . | . . . . Recycling Units 2 | . 2 . . Scanalyzers . | . . . . Garrison Access . | . . . . Total Hacks 33 | . 23 1 9 Successful 24 | . 14 1 9 Failed 9 | . 9 . . Catastrophic . | . . . . Database Lockouts . | . . . . Manual 14 | . 14 . . Terminals 19 | . 19 . . Fabricators . | . . . . Repair Stations . | . . . . Recycling Units 4 | . 4 . . Scanalyzers . | . . . . Garrison Access . | . . . . Terminal Hacks 17 | . 7 1 9 Record 8 | . . . 8 Open Door 1 | . . 1 . Level Access Points 1 | . 1 . . Branch Access Points 1 | . 1 . . Terminal Index 1 | . 1 . . Unreport Threat 1 | . 1 . . Locate Traps 1 | . 1 . . Surveillance Status 1 | . 1 . . Zone Layout 1 | . 1 . . Proto ID Catalog 1 | . . . 1 Fabricator Hacks . | . . . . Repair Station Hacks . | . . . . Recycling Unit Hacks . | . . . . Scanalyzer . | . . . . Garrison Access Hacks . | . . . . Unauthorized Hacks 7 | . 7 . . Terminals 5 | . 5 . . Botnet 1 | . 1 . . Skim 4 | . 4 . . Fabricators . | . . . . Repair Stations . | . . . . Recycling Units 2 | . 2 . . Tunnel 2 | . 2 . . Scanalyzers . | . . . . Garrison Access . | . . . . Data Cores Recovered . | . . . . Used . | . . . . Hacking Detections 7 | . 7 . . Full Trace Events . | . . . . Feedback Events . | . . . . Feedback Blocked . | . . . . Robot Schematics Acquired . | . . . . Robots Built . | . . . . Authchips . | . . . . Time . | . . . . Total Robot Build Rating . | . . . . Part Schematics Acquired . | . . . . Parts Built . | . . . . Authchips . | . . . . Time . | . . . . Total Part Build Rating . | . . . . Parts Repaired . | . . . . Time . | . . . . Parts Recycled . | . . . . Recycled Matter . | . . . . Retrieved Matter . | . . . . Retrieved Components . | . . . . Parts Scanalyzed . | . . . . Part Schematics Acquired . | . . . . Parts Damaged . | . . . . Bothacking | -11 -10 -10 -10 ------------ Run | Yrd Mat Min Sub Used RIF Installer . | . . . . Robots Hacked . | . . . . Non-combat . | . . . . Combat . | . . . . Robot Hacks Applied . | . . . . Relay Couplers Released . | . . . . Fabnet Peak Effective % . | . . . . Robots Rewired . | . . . . Allies Hacked . | . . . . Hacks Repelled . | . . . . Allies | -11 -10 -10 -10 -------- Run | Yrd Mat Min Sub Total Allies . | . . . . Largest Group . | . . . . Highest-Rated Group . | . . . . Highest-Rated Ally . | . . . . Total Orders . | . . . . Ally Attacks . | . . . . Total Damage . | . . . . Kills . | . . . . Allies Corrupted . | . . . . Allies Melted . | . . . . Intel | -11 -10 -10 -10 ------- Run | Yrd Mat Min Sub Active Infowar (turns) 328 | 16 312 . . Terrain 328 | 16 312 . . Robot Analysis Total . | . . . . Derelict Logs Recovered 2 | . . 1 1 Drone Launches . | . . . . Drone Recoveries . | . . . . Exploration | -11 -10 -10 -10 ------------- Run | Yrd Mat Min Sub Turns Passed 2878 | 49 828 870 1131 Spaces Moved 1525 | 21 403 504 597 Core . | . . . . Treads 1525 | 21 403 504 597 Legs . | . . . . Wheels . | . . . . Hover . | . . . . Flight . | . . . . Fastest Speed 160 | 160 160 160 160 Average Speed 164 | 160 178 160 160 Slowest Speed 240 | 160 240 160 160 Overloaded Moves . | . . . . Propulsion Burnouts . | . . . . Robots Hopped . | . . . . Potential Cave-ins . | . . . . Cave-ins Triggered . | . . . . Exploration Rate (%) 55 | 3 77 97 43 Regions Visited 3 Branch Regions 2 Pre-discovered Areas 2 | . 2 . . Known Exits Taken 1 | . 1 . . Unknown Exits Taken 2 | 1 . 1 . Scrap Searched 7 | . . 2 5 Spaces Dug 6 | . 6 . . Terrain Destroyed 49 | . 21 28 . Melee 1 | . 1 . . Projectile . | . . . . AOE 48 | . 20 28 . Terrain Rammed 1 | . 1 . . Walls Destroyed . | . . . . Machines Disabled . | . . . . Actions | -11 -10 -10 -10 --------- Run | Yrd Mat Min Sub Total 1726 | 33 470 540 683 Wait 19 | . 11 5 3 Move 1522 | 20 402 503 597 Hop . | . . . . Pick Up 27 | . 13 4 10 Fast Attach 7 | 1 5 . 1 Attach 15 | 2 2 2 9 Detach 5 | 2 3 . . Swap 15 | 1 4 3 7 Drop 18 | 4 5 2 7 Fire 90 | 3 22 16 49 Melee 1 | . 1 . . Ram 1 | . 1 . . Kick . | . . . . Crush 6 | . 1 5 . Escape Stasis . | . . . . Rewire . | . . . . Trap . | . . . . Miscellaneous . | . . . . Route ------- -11/Scrapyard -10/Materials (discovered 4 exits: *Mat x3 / *Min) -10/Mines (discovered 3 exits: *Mat x2 / *Sub) -10/Subcaves (discovered 2 exits: *Mat x2) History --------- Turn | Location | Event 1 | -11/Scrapyard | Discovered new exit (range 2) 50 | -11/Scrapyard | Entered Materials 164 | -10/Materials | Identified exit to Materials 186 | -10/Materials | Identified exit to Mines 314 | -10/Materials | Build established: Mutant 878 | -10/Materials | Entered Mines 894 | -10/Mines | Learned Materials security intel 1013 | -10/Mines | Discovered new exit (range 6) 1305 | -10/Mines | Discovered exit to Materials (range 9) 1456 | -10/Mines | A weapon hastily lodged in a ceiling crevice suddenly fell to the ground 1601 | -10/Mines | Discovered exit to Materials (range 12) 1611 | -10/Mines | Met a Derelict who couldn't figure out how to use a Trap Extractor 1748 | -10/Mines | Entered Subcaves 1792 | -10/Subcaves | Ambushed by Subdweller buried in earth 1877 | -10/Subcaves | Discovered new exit (range 15) 1933 | -10/Subcaves | Learned Materials terminal intel 2004 | -10/Subcaves | Core integrity fell below 50% 2030 | -10/Subcaves | Lost 3 parts (1p1n1w) 2221 | -10/Subcaves | Visited 4L-MR0's lab 2242 | -10/Subcaves | Found Tower Shield 2441 | -10/Subcaves | Discovered new exit (range 14) 2484 | -10/Subcaves | Identified exit to Materials 2874 | -10/Subcaves | Core integrity fell below 20% 2879 | -10/Subcaves | Destroyed by J1-C7A(R) with Subdweller Beam Cannon Last Messages --------------- 02824_ Lgt. Treads destroyed. 02825_ S-10 Pest knocked back. 02828_ S-10 Pest destroyed. 02830_ Lgt. Ion Engine fries itself beyond repair. 02831_ S-10 Pest destroyed. 02835_ Acquired 2 matter. 02838_ Acquired 12 matter. 02839_ Acquired 5 matter. 02840_ Lgt. Assault Rifle fries itself beyond repair. 02841_ Acquired 3 matter. 02843_ Acquired 6 matter. 02846_ Acquired 5 matter. 02864_ 56-E4W(R) knocked back. 02868_ Lgt. Treads destroyed. 02872_ Barrage Gun destroyed. 02874_ Battle Cannon destroyed. 02875_ Discarded Signal Interpreter. 02877_ 56-E4W(R) destroyed. Map ----- +----------------------------------------------------+ | ???????? ### #????????????????? | | ?????? ??# ##???????????????? | | ?????? ??## #???????????????? | | ?????? ## ????### #??????????????? | | ??????? ??### ??????## #######??????????????? | | ???????#?????#???????## ###??????????????????? | | ????????????????????## #??????????????????? | | ????????????????????# #####??????????????? | | ????????????????????# ##?????????????? | | ????????????????????# #?????????????? | | ???????????????????## ### ######?????????????? | | ??????????????????## ##### ##??????????????? | | ??????????????????# #??????????????? | | ??????????????????# ##?????????????? | | ??????????????????## ## #?????????????? | | ???????????????????# ##### ##?????????????? | | ???????????????????# #???##* #??????????????? | | ???????????????????## #????# #??????????????? | | ????????????????????# #???## #??????????????? | | ????????????????????## #???# #??????????????? | | ?????????????????????## ###### #??????????????? | | ??????????????????????#### #??????????????? | | ????????????????????##### ##??????????????? | | ???????????????????## %%R % ##???????????????? | | ???????????????????# ##????????????????? | | ???????????????????# ##@ #?????????????????? | | ???????????????????## #?# #?????????????????? | | ???????????????????# ??# #?????????????????? | | ???????????????????##???# ????????????????? | | ????????????????????????## #??????????????? | | ?????????????????????????#### #??????????????? | | ???????????????????????????? ;#??????????????? | | ????????????????????????????# ##??????????????? | | ????????????????????????????? #???????????????? | | ????????????????????????????? ##???????????????? | | ????????????????????????????? #????????????????? | | ????????????????????????????? ????????????????? | | ????????????????????????????? ????????????????? | | ????????????????????????????? ????????????????? | | ?????????????????????????????? ?????????????????? | | ????????????????????????????????????????????????? | | ????????????????????????????????????????????????? | | ????????????????????????????????????????????????? | | ????????????????????????????????????????????????? | | ????????????????????????????????????????????????? | | ????????????????????????????????????????????????? | | ????????????????????????????????????????????????? | | ????????????????????????????????????????????????? | | ????????????????????????????????????????????????? | | ????????????????????????????????????????????????? | +----------------------------------------------------+ Best States ------------- Heat Dissipation 25 Energy Generation 15 Energy Capacity 250 Matter Stores 300 Matter Capacity 300 Sight Range 16 Terrain Scan Range 16 Terrain Scan Density 10 Weapon Shielding 33 Evasion (%) 40 Targeting Accuracy 5 Recoil Reduction 2 Item Schematics ----------------- None Robot Schematics ------------------ None Fabricated ------------ Nothing Repaired ---------- Nothing Alien Tech Used ----------------- None Achievements -------------- None Challenges ------------ None Game ------ Seed ChipReinforcedFlightbrick Manual? 0 Play Time 00:21:24 Cumulative 9.5 hours Start 2025.08.03 @ 00:51:39 End 2025.08.03 @ 01:34:18 Sessions 2 Manual Loads 0 Difficulty Rogue Special Mode None Game No. 4 Rogue 4 Adventurer 0 Explorer 0 Win Type - Total 0 Types 0/0/0/0/0/0/0/0/0/0 Lore% 18 Gallery% 11 Achievement% 72 Wizard Run 0 Options --------- Layout 2 ASCII 0 Keyboard 1 Movement Vi Keybinds 0 Fullscreen 1 Font 28/SwanstonBold Map View 50x52 Zoom Use 0% Tactical HUD 1 Map Filters NONE Filters NONE Steam 1 RUN: a241d392-6329-4303-ae25-25147aceacaf